fUST/lending_fUST_20240216
["ID","MTS","AMOUNT","RATE_DAILY","PERIOD"]
[314188641,1708054256089,-23026.58,0.00024109,2]
[314188642,1708054256098,-15412.25,0.00024109,2]
[314188643,1708054256107,-2019.41,0.00024109,2]
[314188644,1708054256116,-500.0,0.00024109,2]
[314188645,1708054256126,-500.0,0.00024109,2]
[314188646,1708054256135,-500.0,0.00024109,2]
[314188647,1708054256145,-620.00033155,0.00024222,2]
[314188648,1708054256155,-300.0,0.00024231,2]
[314188649,1708054256164,-285.00901449,0.00024273,2]
[314188650,1708054256173,-498.29576322,0.00024383,2]
[314188651,1708054256182,-500.0,0.00024383,2]
[314188652,1708054256191,-547.44,0.00024383,2]
[314188653,1708054256250,-500.0,0.00024383,2]
[314188654,1708054256259,-1221.25,0.00024383,2]
[314188655,1708054256269,-500.0,0.00024383,2]
[314188656,1708054256279,-665.87,0.00024383,2]
[314188657,1708054256288,-369.06661881,0.00024383,2]
[314188658,1708054256298,-506.01,0.00024383,2]
[314188659,1708054256307,-500.0,0.00024383,2]
[314188660,1708054256316,-500.0,0.00024383,2]
[314188661,1708054256326,-500.0,0.00024383,2]
[314188662,1708054256335,-1574.67,0.00024383,2]
[314188663,1708054256345,-626.95990479,0.00024383,2]
[314188664,1708054256354,-500.0,0.00024383,2]
[314188665,1708054256363,-500.0,0.00024383,2]
[314188666,1708054256372,-1693.02,0.00024383,2]
[314188667,1708054256382,-1674.29,0.00024383,2]
[314188668,1708054256393,-569.14,0.00024383,2]
[314188669,1708054256404,-500.0,0.00024383,2]
[314188670,1708054256413,-894.49,0.00024383,2]
[314188671,1708054256423,-818.02,0.00024383,2]
[314188672,1708054256432,-625.33,0.00024383,2]
[314188673,1708054256442,-644.52,0.00024383,2]
[314188674,1708054256451,-1876.77,0.00024383,2]
[314188675,1708054256461,-500.0,0.00024383,2]
[314188676,1708054256472,-645.75,0.00024383,2]
[314188677,1708054256481,-500.0,0.00024383,2]
[314188678,1708054256491,-507.5,0.00024383,2]
[314188679,1708054256500,-728.18,0.00024383,2]
[314188680,1708054256510,-1036.45,0.00024383,2]
[314188681,1708054256519,-500.0,0.00024383,2]
[314188682,1708054256530,-800.26,0.00024383,2]
[314188683,1708054256539,-639.33,0.00024383,2]
[314188684,1708054256548,-715.64,0.00024383,2]
[314188685,1708054256558,-889.66,0.00024383,2]
[314188686,1708054256567,-588.41,0.00024383,2]
[314188687,1708054256576,-2776.0,0.00024383,2]
[314188688,1708054256585,-718.01,0.00024383,2]
[314188689,1708054256594,-9937.14,0.00024383,2]
[314188690,1708054256603,-3484.33,0.00024383,2]
[314188691,1708054256613,-1127.49,0.00024383,2]
[314188692,1708054256625,-500.0,0.00024383,2]
[314188693,1708054256635,-500.0,0.00024383,2]
[314188694,1708054256646,-3485.39,0.00024383,2]
[314188695,1708054256655,-1972.62,0.00024383,2]
[314188696,1708054256677,-607.93598477,0.00024383,2]
[314188697,1708054256697,-1948.69,0.00024383,2]
[314188698,1708054256716,-1682.2,0.00024383,2]
[314188699,1708054256736,-500.0,0.00024383,2]
[314188700,1708054256752,-500.0,0.00024383,2]
[314188701,1708054256769,-899.34,0.00024383,2]
[314188702,1708054256787,-2527.09,0.00024383,2]
[314188703,1708054256804,-1647.54,0.00024383,2]
[314188704,1708054256822,-500.0,0.00024383,2]
[314188705,1708054256840,-16248.91,0.00024383,2]
[314188706,1708054256861,-1219.32,0.00024383,2]
[314188707,1708054256881,-500.0,0.00024383,2]
[314188708,1708054256896,-2910.33,0.00024383,2]
[314188709,1708054256911,-2603.98,0.00024383,2]
[314188710,1708054256927,-500.0,0.00024383,30]
[314188711,1708054256942,-18667.13,0.00024383,2]
[314188712,1708054256956,-852.11,0.00024383,2]
[314188713,1708054256971,-500.0,0.00024383,2]
[314188714,1708054256985,-1591.21,0.00024383,2]
[314188715,1708054256999,-15067.1,0.00024383,2]
[314188716,1708054257014,-3743.66,0.00024383,2]
[314188717,1708054257028,-500.0,0.00024383,2]
[314188718,1708054257041,-2066.91,0.00024383,2]
[314188719,1708054257056,-1505.22,0.00024383,2]
[314188720,1708054257071,-500.0,0.00024383,2]
[314188721,1708054257085,-3281.48,0.00024383,2]
[314188722,1708054257098,-500.0,0.00024383,2]
[314188723,1708054257113,-2563.61,0.00024383,2]
[314188724,1708054257128,-500.0,0.00024383,2]
[314188725,1708054257142,-3197.98,0.00024383,2]
[314188726,1708054257158,-558.77,0.00024383,2]
[314188727,1708054257172,-23026.58,0.00024383,2]
[314188728,1708054257186,-15412.25,0.00024383,2]
[314188729,1708054257201,-2019.41,0.00024383,2]
[314188730,1708054257216,-500.0,0.00024383,2]
[314188731,1708054257230,-500.0,0.00024383,2]
[314188732,1708054257244,-500.0,0.00024383,2]
[314188733,1708054257259,-500.0,0.00024657,2]
[314188734,1708054257273,-547.44,0.00024657,2]
[314188735,1708054257287,-628.20260318,0.00024657,2]
[314188736,1708054257301,-1221.25,0.00024657,2]
[314188737,1708054257374,-500.0,0.00024657,2]
[314188738,1708054257401,-665.87,0.00024657,2]
[314188739,1708054257411,-506.01,0.00024657,2]
[314188740,1708054257420,-500.0,0.00024657,2]
[314188741,1708054257430,-500.0,0.00024657,2]
[314188742,1708054257439,-630.59914802,0.00024657,2]
[314188743,1708054257448,-1574.67,0.00024657,2]
[314188744,1708054257458,-466.31281061,0.00024657,2]
[314188745,1708054257467,-196.15202063,0.00024657,2]
[314188746,1708054257477,-1693.02,0.00024657,2]
[314188747,1708054257487,-1674.29,0.00024657,2]
[314188748,1708054257496,-569.14,0.00024657,2]
[314188749,1708054257506,-500.0,0.00024657,2]
[314188750,1708054257515,-894.49,0.00024657,2]
[314188751,1708054257525,-818.02,0.00024657,2]
[314188752,1708054257535,-625.33,0.00024657,2]
[314188753,1708054257546,-644.52,0.00024657,2]
[314188754,1708054257557,-1876.77,0.00024657,2]
[314188755,1708054257568,-500.0,0.00024657,2]
[314188756,1708054257580,-645.75,0.00024657,2]
[314188757,1708054257589,-500.0,0.00024657,2]
[314188758,1708054257599,-507.5,0.00024657,2]
[314188759,1708054257610,-728.18,0.00024657,2]
[314188760,1708054257620,-1036.45,0.00024657,2]
[314188761,1708054257629,-507.03161718,0.00024657,2]
[314188762,1708054257640,-800.26,0.00024657,2]
[314188763,1708054257651,-639.33,0.00024657,2]
[314188764,1708054257661,-715.64,0.00024657,2]
[314188765,1708054257672,-889.66,0.00024657,2]
[314188766,1708054257682,-588.41,0.00024657,2]
[314188767,1708054257692,-390.0,0.00024657,2]
[314188768,1708054257701,-390.0,0.00024657,2]
[314188769,1708054257710,-390.0,0.00024657,2]
[314188770,1708054257719,-390.0,0.00024657,2]
[314188771,1708054257729,-390.0,0.00024657,2]
[314188772,1708054257738,-390.0,0.00024657,2]
[314188773,1708054257747,-390.0,0.00024657,2]
[314188774,1708054257759,-363.21216889,0.00024657,2]
[314188775,1708054257770,-2776.0,0.00024657,2]
[314188776,1708054257780,-718.01,0.00024657,2]
[314188777,1708054257789,-9937.14,0.00024657,2]
[314188778,1708054257799,-3484.33,0.00024657,2]
[314188779,1708054257808,-1127.49,0.00024657,2]
[314188780,1708054257818,-500.0,0.00024657,2]
[314188781,1708054257827,-500.0,0.00024657,2]
[314188782,1708054257837,-1090.4436986,0.00024657,2]
[314188783,1708054257956,-2394.9463014,0.00024657,2]
[314188784,1708054257966,-1972.62,0.00024657,2]
[314188785,1708054257975,-1948.69,0.00024657,2]
[314188786,1708054257985,-1682.2,0.00024657,2]
[314188787,1708054257994,-424.63280939,0.00024657,2]
[314188788,1708054258006,-500.0,0.00024657,2]
[314188789,1708054258015,-899.34,0.00024657,2]
[314188790,1708054258025,-2527.09,0.00024657,2]
[314188791,1708054258035,-1647.54,0.00024657,2]
[314188792,1708054258044,-500.0,0.00024657,2]
[314188793,1708054258054,-16248.91,0.00024657,2]
[314188794,1708054258064,-1219.32,0.00024657,2]
[314188795,1708054258074,-500.0,0.00024657,2]
[314188796,1708054258084,-2910.33,0.00024657,2]
[314188797,1708054258094,-2603.98,0.00024657,2]
[314188798,1708054258103,-500.0,0.00024657,30]
[314188799,1708054258113,-18667.13,0.00024657,2]
[314188800,1708054258123,-852.11,0.00024657,2]
[314188801,1708054258133,-500.0,0.00024657,2]
[314188802,1708054258144,-1591.21,0.00024657,2]
[314188803,1708054258153,-15067.1,0.00024657,2]
[314188804,1708054258162,-3743.66,0.00024657,2]
[314188805,1708054258172,-500.0,0.00024657,2]
[314188806,1708054258182,-2066.91,0.00024657,2]
[314188807,1708054258191,-1505.22,0.00024657,2]
[314188808,1708054258201,-500.0,0.00024657,2]
[314188809,1708054258210,-3281.48,0.00024657,2]
[314188810,1708054258219,-500.0,0.00024657,2]
[314188811,1708054258229,-2563.61,0.00024657,2]
[314188812,1708054258239,-285.84909403,0.00024657,2]
[314188813,1708054258248,-3197.98,0.00024657,2]
[314188814,1708054258260,-558.77,0.00024657,2]
[314188815,1708054258270,-23026.58,0.00024657,2]
[314188816,1708054258279,-15412.25,0.00024657,2]
[314188817,1708054258289,-2019.41,0.00024657,2]
[314188818,1708054258299,-242.8294603,0.00024657,2]
[314188819,1708054258308,-500.0,0.00024657,2]
[314188820,1708054258318,-500.0,0.00024657,2]
[314188821,1708054258328,-166.666666,0.00024658,2]
[314188822,1708054258339,-380.0,0.00024658,2]
[314188823,1708054258349,-300.0,0.00024754,2]
[314188824,1708054258360,-300.0,0.000248,11]
[314188825,1708054258370,-515.7265157,0.00024931,2]
[314188826,1708054258379,-547.44,0.00024931,2]
[314188827,1708054258393,-1221.25,0.00024931,2]
[314188828,1708054258461,-500.0,0.00024931,2]
[314188829,1708054258473,-665.87,0.00024931,2]
[314188830,1708054258482,-506.01,0.00024931,2]
[314188831,1708054258491,-500.0,0.00024931,2]
[314188832,1708054258500,-500.0,0.00024931,2]
[314188833,1708054258512,-1574.67,0.00024931,2]
[314188834,1708054258521,-1693.02,0.00024931,2]
[314188835,1708054258531,-1674.29,0.00024931,2]
[314188836,1708054258541,-569.14,0.00024931,2]
[314188837,1708054258550,-500.0,0.00024931,2]
[314188838,1708054258559,-894.49,0.00024931,2]
[314188839,1708054258569,-818.02,0.00024931,2]
[314188840,1708054258578,-625.33,0.00024931,2]
[314188841,1708054258587,-644.52,0.00024931,2]
[314188842,1708054258598,-1876.77,0.00024931,2]
[314188843,1708054258608,-512.97389647,0.00024931,2]
[314188844,1708054258617,-645.75,0.00024931,2]
[314188845,1708054258626,-500.0,0.00024931,2]
[314188846,1708054258636,-507.5,0.00024931,2]
[314188847,1708054258645,-728.18,0.00024931,2]
[314188848,1708054258656,-1036.45,0.00024931,2]
[314188849,1708054258666,-800.26,0.00024931,2]
[314188850,1708054258676,-639.33,0.00024931,2]
[314188851,1708054258686,-715.64,0.00024931,2]
[314188852,1708054258697,-889.66,0.00024931,2]
[314188853,1708054258707,-588.41,0.00024931,2]
[314188854,1708054258716,-2776.0,0.00024931,2]
[314188855,1708054258726,-718.01,0.00024931,2]
[314188856,1708054258735,-9937.14,0.00024931,2]
[314188857,1708054258744,-3484.33,0.00024931,2]
[314188858,1708054258755,-1127.49,0.00024931,2]
[314188859,1708054258764,-500.0,0.00024931,2]
[314188860,1708054258773,-196.00277805,0.00024931,2]
[314188861,1708054258822,-2144.62806555,0.00023287,2]
[314188862,1708054258834,-465.19676197,0.00023287,2]
[314188863,1708054258861,-2886.45301095,0.00023287,2]
[314188885,1708055204463,291.018737,0.0001925,2]
[314188886,1708055207700,1766.7637684,0.0001925,2]
[314188924,1708055432704,-258.24032165,0.00020073,2]
[314188927,1708055432713,-1292.12192719,0.00020074,2]
[314188930,1708055432722,-524.41093876,0.0002008,2]
[314188932,1708055432731,-171.898971,0.00020083,2]
[314188934,1708055432741,-24900.0,0.00020115,2]
[314188936,1708055432755,-77.37632892,0.00020188,2]
[314191227,1708055576813,769.10060302,0.000189,2]
[314191230,1708055658511,310.59544387,0.000176,2]
[314191233,1708055697272,291.018737,0.00019683,2]
[314191235,1708055856620,193.41565972,0.00019987,3]
[314191237,1708055900672,184.1990425,0.00019618,2]
[314191239,1708055943100,8646.585769,0.00019625,2]
[314191240,1708056084196,155.83992726,0.00019527,2]
[314191241,1708056113294,1529.7841905,0.00019527,2]
[314191242,1708056178544,512.73373534,0.000189,2]
[314191243,1708056322139,24900.0,0.00019519,2]
[314191360,1708056637874,-179.676,0.00020079,2]
[314191362,1708056637884,-258.24032165,0.0002008,2]
[314191364,1708056637894,-482.27683925,0.00020081,2]
[314191366,1708056637903,-748.48872252,0.00020729,2]
[314191669,1708056641137,-248.88379853,0.00020729,2]
[314191671,1708056641147,-168.313164,0.0002073,2]
[314191674,1708056641157,-500.86810084,0.00021,2]
[314192227,1708056646597,-11666.28621322,0.00021,2]
[314192229,1708056646606,-6451.19020492,0.00021,2]
[314192231,1708056646616,-168.45859295,0.00021319,2]
[314192233,1708056646625,-200.0,0.00021419,7]
[314192235,1708056646634,-200.0,0.00021419,7]
[314192237,1708056646644,-2723.61572619,0.00021807,3]
[314192239,1708056646660,-1091.3,0.00021807,3]
[314192665,1708056779878,516.32536092,0.000189,2]
[314192681,1708057381027,344.21690728,0.00019707,2]
[314192686,1708057818559,24900.0,0.00019787,2]
[314192725,1708057833912,-155.10547172,0.00020281,2]
[314192727,1708057833922,-408.68927077,0.00020282,2]
[314192729,1708057833932,-157.62128778,0.00020283,2]
[314192731,1708057833941,-482.27683925,0.00020388,2]
[314192733,1708057833950,-171.898971,0.00020559,2]
[314192735,1708057833960,-200.0,0.00020796,2]
[314192737,1708057833969,-200.0,0.00020796,2]
[314192739,1708057833978,-17925.54114488,0.00021805,2]
[314192741,1708057833988,-423.30561527,0.00021807,2]
[314192743,1708057833998,-9292.9,0.00021807,3]
[314192745,1708057834009,-4147.18132947,0.00021807,2]
[314192747,1708057834019,-482.48644988,0.00021815,2]
[314192749,1708057834029,-250.0,0.00021816,2]
[314192752,1708057834038,-147627.51221415,0.00021817,2]
[314192754,1708057834055,-3388.41071843,0.00021817,2]
[314193115,1708057841618,-66650.51153415,0.00021817,2]
[314193116,1708057841630,-423.30561523,0.00021861,2]
[314193117,1708057841641,-5757.80621271,0.00021906,3]
[314193126,1708057843088,-1986.27378729,0.00021906,3]
[314193127,1708057843098,-155.53410627,0.00021915,2]
[314193128,1708057843107,-46.69283409,0.00021915,2]
[314193136,1708057982533,345.81318531,0.00019717,2]
[314193142,1708058250658,155.10081553,0.00019717,2]
[314193144,1708058272665,155.10081553,0.00019717,2]
[314193146,1708058288684,175.27567072,0.00019717,2]
[314193154,1708058583937,230.54212354,0.00019717,2]
[314193196,1708059032279,-155.08840039,0.00020094,2]
[314193198,1708059032288,-155.08840039,0.00020094,2]
[314193200,1708059032298,-342.83049314,0.00020095,2]
[314193327,1708059038304,-24557.16950686,0.00020095,2]
[314193329,1708059038314,-4186.46,0.00020453,3]
[314193331,1708059038323,-261.44896995,0.00020462,2]
[314193333,1708059038332,-50000.0,0.00020463,2]
[314193334,1708059038340,-482.27683925,0.000206,2]
[314193336,1708059038349,-1760.31453126,0.00020604,3]
[314193338,1708059038359,-168.313164,0.00020611,2]
[314193340,1708059038368,-200.0,0.00020871,2]
[314193342,1708059038378,-200.0,0.00020871,2]
[314193345,1708059038387,-412.15600872,0.00021816,2]
[314193346,1708059038396,-59018.57276333,0.00021817,2]
[314193348,1708059038406,-412.1560087,0.00021885,2]
[314193350,1708059038415,-1000.0,0.00021916,2]
[314193352,1708059038424,-519.40110097,0.00021917,2]
[314193354,1708059038434,-500.0,0.00021917,2]
[314193356,1708059038443,-500.0,0.00021917,2]
[314193358,1708059038452,-500.0,0.00021917,2]
[314193360,1708059038461,-500.0,0.00021917,2]
[314193362,1708059038470,-500.0,0.00021917,2]
[314193364,1708059038479,-500.0,0.00021917,2]
[314193366,1708059038488,-329.86413209,0.00021917,2]
[314193369,1708059038506,-170.13586791,0.00021917,2]
[314193371,1708059038515,-508.16759253,0.00021917,2]
[314193373,1708059038524,-752.04906953,0.00021917,2]
[314193723,1708059185161,203.69474903,0.00019717,2]
[314193730,1708059481147,155.20775555,0.0002,2]
[314193743,1708060200409,203.7736029,0.00033,120]
[314193793,1708060232429,-258.24032165,0.00020506,2]
[314193795,1708060232439,-155.09460771,0.00020506,2]
[314193797,1708060232448,-73.70750707,0.00020507,2]
[314194093,1708060238456,-81.38710064,0.00020507,2]
[314194095,1708060238465,-1042.13839459,0.00020517,2]
[314194101,1708060238511,-470.94318688,0.00020517,2]
[314194371,1708060246522,-8475.49314353,0.00020517,2]
[314194373,1708060246532,-2978.08091923,0.00020882,2]
[314194406,1708060944030,18384.94558722,0.0002,2]
[314194436,1708061432635,-155.09305583,0.00021699,2]
[314194439,1708061432645,-579.0,0.000217,2]
[314194440,1708061432655,-6526.71335444,0.000218,2]
[314194442,1708061432668,-1810.11702139,0.000218,2]
[314194478,1708061438673,-692.67440871,0.000218,2]
[314194485,1708061438729,-1815.72721189,0.000218,2]
[314194916,1708061876484,-500.0,0.00021917,30]
[314194920,1708062539436,-200.0,0.00021917,30]
[314195344,1708062641018,-169.22422,0.0002061,2]
[314195345,1708062641028,-4173.26877118,0.000218,2]
[314195526,1708062711067,-300.0,0.00021917,30]
[314195527,1708062711133,-450.0,0.00022191,30]
[314195533,1708063526284,1900.0,0.0002,2]
[314195559,1708063832141,-169.747925,0.00020128,2]
[314195560,1708063832151,-3392.5992057,0.00020537,2]
[314195561,1708063832161,-623.65953333,0.00020715,2]
[314195562,1708063832170,-150.33426151,0.00021,2]
[314195563,1708063832179,-742.58518518,0.00021088,2]
[314195564,1708063832189,-50000.0,0.00021089,2]
[314195565,1708063832198,-168.45859294,0.0002141,2]
[314195566,1708063832208,-312.8842493,0.000215,2]
[314195567,1708063832219,-200.0,0.0002151,7]
[314195568,1708063832228,-200.0,0.0002151,7]
[314195569,1708063832237,-308.766801,0.000216,2]
[314195570,1708063832246,-620.18297667,0.0002175,2]
[314195571,1708063832256,-6263.0223759,0.000218,2]
[314195708,1708063841369,-652.47978982,0.00021799,2]
[314195709,1708063841378,-917.31644996,0.000218,2]
[314195722,1708063843945,-0.0950341,0.000218,2]
[314195738,1708063846072,-252.26028481,0.000218,2]
[314195739,1708063995887,185.79649935,0.000197,2]
[314195761,1708064693019,-500.0,0.00021917,30]
[314195762,1708064693066,-217.050711,0.000221,30]
[314195763,1708064693095,-282.949289,0.00022191,30]
[314195764,1708064693143,-217.050711,0.00022191,30]
[314195765,1708064693169,-282.898578,0.00022465,30]
[314195785,1708064883124,217.050711,0.00021917,30]
[314195786,1708064883241,282.949289,0.00021917,30]
[314195854,1708065033580,-12421.8067213,0.00020815,2]
[314195856,1708065033589,-742.58518518,0.00020855,2]
[314195858,1708065033599,-652.47978982,0.00020856,2]
[314195860,1708065033608,-5282.96402881,0.00020856,2]
[314195863,1708065033618,-200.0,0.00021231,7]
[314195864,1708065033627,-200.0,0.00021231,7]
[314195866,1708065033638,-171.4412513,0.00021318,2]
[314195868,1708065033647,-233.9637,0.00021691,2]
[314195871,1708065033657,-168.45859294,0.00021704,2]
[314195873,1708065033666,-124235.92670846,0.000218,2]
[314196229,1708065041392,-8815.79486545,0.000218,2]
[314196382,1708065043240,-288.57936878,0.000218,2]
[314196391,1708065043313,-217.053201,0.000218,2]
[314196610,1708065047146,-4787.57644726,0.000218,2]
[314196626,1708065141926,24468.61347188,0.00033,120]
[314196629,1708065369673,-613.69,0.00022191,30]
[314196709,1708066232424,-620.00914883,0.00021696,2]
[314196711,1708066232433,-168.45859294,0.00021799,2]
[314196713,1708066232443,-25115.53225823,0.000218,2]
[314197310,1708066238545,-171191.18351623,0.000218,2]
[314197598,1708066241745,-301.33481101,0.000218,2]
[314197601,1708066241757,-1565.71359578,0.000218,2]
[314197603,1708066241769,-2597.2,0.000218,2]
[314197735,1708066401757,223.8643329,0.000197,2]
[314197738,1708066655918,-200.0,0.00021286,7]
[314197739,1708066655939,-200.0,0.00021286,7]
[314197740,1708066746322,7994.33028244,0.0002,2]
[314197741,1708066758190,7994.33028244,0.0002,2]
[314197742,1708066832557,10000.0,0.0002,2]
[314197743,1708066883349,47342.26124604,0.0002,2]
[314197744,1708066927090,11357.73875396,0.00019,2]
[314197745,1708067045468,-200.0,0.00022439,7]
[314197746,1708067045491,-76.66,0.00022439,7]
[314197747,1708067223164,-177.28,0.00022437,7]
[314197822,1708067434746,-2481.31596441,0.00019373,2]
[314197858,1708067438611,-2801.6480644,0.00019373,2]
[314197860,1708067438621,-5991.70805984,0.00019373,2]
[314197862,1708067438631,-1090.37696417,0.00019374,2]
[314197864,1708067438642,-5502.74440674,0.00019374,2]
[314197866,1708067438671,-4894.91241629,0.00019374,2]
[314197867,1708067438680,-291.87732745,0.0001988,3]
[314197947,1708067441843,-7738.04277728,0.0001988,3]
[314198067,1708067447839,-168.45859294,0.00019898,2]
[314198069,1708067447849,-13233.49124697,0.000199,2]
[314198088,1708067614317,24900.0,0.00018998,2]
[314198090,1708067746336,342.714599,0.00018838,2]
[314198091,1708067885248,1129.095032,0.00018812,2]
[314198099,1708067973930,1377.8312952,0.00018812,2]
[314198100,1708067996643,13776.30044485,0.00033,120]
[314198102,1708068083219,6124.5242948,0.00018949,2]
[314198103,1708068104117,169.107171,0.00019178,2]
[314198109,1708068248956,380.0,0.00015,2]
[314198110,1708068384350,564.547516,0.00018998,2]
[314198341,1708068634031,-5282.96402881,0.00019263,2]
[314198342,1708068634041,-1292.12192719,0.00019264,2]
[314198343,1708068634153,-524.41093876,0.00019271,2]
[314198344,1708068634163,-215.7412467,0.00019404,2]
[314198346,1708068634172,-165.58474423,0.00019898,2]
[314198347,1708068634182,-37468.73849051,0.000199,2]
[314198349,1708068634191,-482.27683925,0.00019998,2]
[314198351,1708068634200,-5425.25245098,0.00019999,2]
[314198352,1708068634210,-169.725628,0.00020095,2]
[314198353,1708068634219,-200.0,0.00020297,2]
[314198354,1708068634228,-200.0,0.00020297,2]
[314198355,1708068634237,-153.0,0.00020356,2]
[314198356,1708068634248,-283.1948541,0.00020456,2]
[314198357,1708068634257,-327.1982026,0.00020456,2]
[314198358,1708068634266,-340.8829499,0.00020456,2]
[314198359,1708068634275,-260.1188346,0.00020456,2]
[314198360,1708068634285,-153.0,0.00020456,2]
[314198361,1708068634295,-153.0,0.00020456,2]
[314198362,1708068634304,-1000.0,0.00021,21]
[314198363,1708068634314,-200.230317,0.00021078,2]
[314198364,1708068634323,-200.230317,0.00021078,2]
[314198365,1708068634334,-399.7387532,0.00021078,2]
[314198366,1708068634344,-153.0,0.00021078,2]
[314198367,1708068634354,-203.2742347,0.00021178,2]
[314198368,1708068634363,-200.230317,0.00021178,2]
[314198369,1708068634373,-200.2824076,0.00021278,2]
[314198370,1708068634383,-165.5847442,0.0002161,2]
[314198371,1708068634392,-620.00045744,0.00021642,2]
[314198372,1708068634401,-151.0,0.0002166,2]
[314198373,1708068634410,-9969.88035797,0.000218,2]
[314198385,1708068637841,-300.0,0.000218,2]
[314198387,1708068637854,-571.36033739,0.000218,2]
[314198430,1708068641145,-5485.92087421,0.000218,2]
[314198432,1708068641159,-5190.7934,0.000218,2]
[314198474,1708068645821,-538.61450309,0.000218,2]
[314198477,1708068645833,-478.5287671,0.000218,2]
[314198479,1708068645846,-4790.0,0.000218,2]
[314198751,1708068916066,-1000.0,0.00022,22]
[314198754,1708069103894,-482.27683925,0.0002049,2]
[314198755,1708069103918,-874.4335863,0.00020491,2]
[314198756,1708069124270,173.0585868,0.00020223,2]
[314198757,1708069149162,250.0,0.00020497,2]
[314198758,1708069159202,24720.23098765,0.00020497,2]
[314198759,1708069271808,-3180.0,0.0002045,2]
[314198760,1708069420437,-199.2428886,0.000197,2]
[314198761,1708069420457,-0.8786292,0.0002045,2]
[314198762,1708069420478,-586.0552272,0.00020488,2]
[314198763,1708069420498,-179.76901235,0.00020497,2]
[314198764,1708069420519,-406.528614,0.00020577,2]
[314198765,1708069420541,-195.73984329,0.00020758,2]
[314198766,1708069420562,-155.27998362,0.00020759,2]
[314198767,1708069420584,-3559.46983055,0.00020858,2]
[314198768,1708069420623,-175.12,0.00021,21]
[314198770,1708069447763,195.73984329,0.0002,2]
[314198771,1708069447784,406.528614,0.0002,2]
[314198772,1708069447804,179.76901235,0.0002,2]
[314198773,1708069447825,428.64870214,0.0002,2]
[314198774,1708069569662,25466.27982195,0.00033,120]
[314198777,1708069627018,-173.0585868,0.00020483,2]
[314198778,1708069627042,-250.0,0.00020688,2]
[314198779,1708069627064,-1300.43561146,0.00020792,2]
[314198780,1708069627095,-824.88,0.00021,21]
[314198781,1708069627132,-300.85850454,0.00020792,2]
[314198782,1708069627154,-299.4731812,0.00020858,2]
[314198783,1708069633545,155.27998362,0.00020692,2]
[314198784,1708069700118,1446.01413238,0.00020782,2]
[314198785,1708069702184,-200.0,0.00021796,7]
[314198786,1708069702206,-200.0,0.00021796,7]
[314198787,1708069702236,-1424.02101706,0.00020782,2]
[314198788,1708069702265,-310.84347976,0.00020782,2]
[314198789,1708069702287,-878.86711004,0.00020782,2]
[314198790,1708069702333,-213.79973358,0.00020782,2]
[314198791,1708069702383,-662.2732096,0.00020782,2]
[314198792,1708069702437,-1946.79998546,0.00020782,2]
[314198793,1708069702491,-1020.2055942,0.00020782,2]
[314198794,1708069702537,-767.9373983,0.00020782,2]
[314198795,1708069702586,-1875.252472,0.00020782,2]
[314198878,1708069838039,-195.73984329,0.00020758,2]
[314198880,1708069838048,-17534.86449682,0.00020782,2]
[314198882,1708069838058,-1424.02101706,0.00020858,2]
[314198884,1708069838067,-1020.2055942,0.00021016,2]
[314198886,1708069838077,-153.0,0.00021278,2]
[314198888,1708069838087,-153.0,0.0002137,2]
[314198890,1708069838096,-155.990802,0.0002137,2]
[314198892,1708069838105,-153.0,0.0002137,2]
[314198894,1708069838114,-200.2824076,0.0002137,2]